bitfinex-derivatives/quotes_SOLF0:USTF0_20260304
["timestamp","ask_amount","ask_price","bid_price","bid_amount"]
[1772582402819,5.14027134,87.109,86.875,8.29902018]
[1772582403218,0.54027134,87.109,86.875,8.29902018]
[1772582403517,160.834,87.044,86.924,8.80880013]
[1772582403722,160.89,87.014,86.924,8.80880013]
[1772582404221,160.911,87.002,86.896,8.80880817]
[1772582404520,160.905,87.006,86.896,8.80880817]
[1772582404724,20.692,86.985,86.898,8.80880817]
[1772582405323,0.24503823,86.984,86.898,8.80880817]
[1772582405616,0.24189711,86.956,86.898,8.80880817]
[1772582408221,10.352,86.935,86.898,8.80880817]
[1772582408524,8.52216131,86.981,86.898,8.80880817]
[1772582408924,8.52216131,86.981,86.9,8.78766284]
[1772582409224,10.35,86.95,86.9,8.78766284]
[1772582409420,10.35,86.95,86.902,8.78766284]
[1772582409925,7.79567957,87.018,86.922,8.78766284]
[1772582410726,10.346,86.983,86.935,8.78766284]
[1772582411527,8.01391159,86.986,86.935,8.78766284]
[1772582413125,10.347,86.975,86.935,8.78766284]
[1772582413829,8.142767,87.002,86.936,8.78766284]
[1772582414732,10.346,86.982,86.936,8.78766284]
[1772582415123,8.27695475,86.988,86.936,8.78766284]
[1772582417233,10.347,86.974,86.936,8.78766284]
[1772582419831,10.348,86.967,86.936,8.78766284]
[1772582420032,8.17268361,86.967,86.92,8.50306456]
[1772582420231,8.17268361,86.967,86.907,8.4883059]
[1772582420536,10.35,86.946,86.907,8.4883059]
[1772582421136,10.349,86.957,86.91,8.4883059]
[1772582422237,10.35,86.95,86.91,8.4883059]
[1772582422537,8.17268361,86.967,86.854,8.4883059]
[1772582423537,10.352,86.937,86.892,8.4883059]
[1772582425037,8.17268361,86.967,86.894,8.4883059]
[1772582426241,8.17268361,86.967,86.911,8.4883059]
[1772582426242,10.35,86.954,86.911,8.4883059]
[1772582426443,8.37392465,86.997,86.911,8.4883059]
[1772582426842,8.37392465,86.997,86.935,8.4883059]
[1772582427542,8.37392465,86.997,86.936,8.4883059]
[1772582428044,10.346,86.986,86.938,8.4883059]
[1772582428944,10.346,86.98,86.938,8.4883059]
[1772582432451,8.58399449,86.984,86.903,8.4883059]
[1772582433047,10.349,86.955,86.914,8.4883059]
[1772582434253,10.349,86.955,86.916,8.4883059]
[1772582434554,10.348,86.963,86.916,8.4883059]
[1772582434754,8.54592157,86.971,86.916,8.4883059]
[1772582435953,10.347,86.974,86.927,8.4883059]
[1772582436355,8.55453644,86.986,86.927,8.4883059]
[1772582436555,8.55453644,86.986,86.939,8.4883059]
[1772582436556,10.346,86.982,86.939,8.4883059]
[1772582438560,10.346,86.982,86.942,8.4883059]
[1772582440460,10.347,86.975,86.942,8.4883059]
[1772582443458,10.346,86.982,86.942,8.4883059]
[1772582443956,10.345,86.99,86.942,8.4883059]
[1772582444160,8.65134918,87.0,86.942,8.4883059]
[1772582445261,8.6707778,86.986,86.914,14.24203961]
[1772582445461,8.6707778,86.986,86.915,8.4883059]
[1772582445861,10.348,86.964,86.915,8.4883059]
[1772582446565,8.67682146,86.94,86.893,8.4883059]
[1772582447161,10.352,86.929,86.893,8.4883059]
[1772582447752,10.353,86.922,86.893,8.4883059]
[1772582449462,8.67682146,86.94,86.879,8.86464]
[1772582449463,10.354,86.914,86.879,8.86464]
[1772582450267,10.355,86.906,86.855,8.86464]
[1772582451262,20.697,86.966,86.759,11.5]
[1772582451263,8.65782797,86.902,86.839,8.86464]
[1772582452266,10.357,86.89,86.839,8.86464]
[1772582452962,10.358,86.882,86.839,8.86464]
[1772582453666,10.357,86.892,86.839,8.86464]
[1772582454164,10.357,86.892,86.841,8.86464]
[1772582455469,10.357,86.892,86.844,8.86464]
[1772582458363,8.65782797,86.887,86.832,19.22864]
[1772582458569,8.65782797,86.887,86.833,8.86464]
[1772582460072,8.65782797,86.887,86.803,14.24203961]
[1772582460073,8.65782797,86.887,86.845,8.86464]
[1772582460275,10.357,86.894,86.845,8.86464]
[1772582460471,8.65782797,86.943,86.845,8.86464]
[1772582460866,19.01182797,86.916,86.862,8.86464]
[1772582461469,8.65782797,86.916,86.868,8.86464]
[1772582461976,10.353,86.924,86.868,8.86464]
[1772582463266,20.696,86.967,86.882,8.86464]
[1772582463267,8.65782797,86.966,86.882,8.86464]
[1772582464280,10.351,86.942,86.891,8.86464]
[1772582465277,10.351,86.942,86.846,20.725]
[1772582465278,8.65782797,86.945,86.893,8.86464]
[1772582465479,10.35,86.95,86.893,8.86464]
[1772582466276,10.35,86.95,86.895,8.86464]
[1772582466479,19.00682797,86.958,86.895,8.86464]
[1772582466679,8.65782797,86.958,86.895,8.86464]
[1772582466876,8.65782797,86.958,86.904,8.86464]
[1772582467077,10.349,86.957,86.904,8.86464]
[1772582467879,160.885,87.016,86.89,8.86464]
[1772582467880,8.65782797,86.936,86.89,8.86464]
[1772582468575,8.65782797,86.924,86.832,8.86464]
[1772582469472,8.65782797,86.924,86.866,8.86464]
[1772582469675,8.65782797,86.973,86.87,8.86464]
[1772582470277,10.353,86.923,86.876,19.22364]
[1772582470984,10.353,86.923,86.891,0.07704485]
[1772582471881,8.65782797,86.93,86.891,0.07704485]
[1772582472189,8.65782797,86.944,86.892,8.86464]
[1772582472580,8.65782797,86.944,86.891,0.07704485]
[1772582472786,8.65782797,86.944,86.872,8.86464]
[1772582473187,8.65782797,86.922,86.872,8.86464]
[1772582473483,8.65782797,86.922,86.821,8.86464]
[1772582474684,10.356,86.898,86.845,8.86464]
[1772582474989,10.356,86.898,86.863,0.07591683]
[1772582475183,8.65782797,86.931,86.863,0.07591683]
[1772582475785,8.65782797,86.931,86.859,8.86464]
[1772582475988,8.65782797,86.931,86.862,8.86464]
[1772582476188,8.65782797,86.931,86.888,0.07336479]
[1772582476587,10.353,86.923,86.888,0.07336479]
[1772582476791,10.353,86.923,86.877,8.86464]
[1772582476792,8.65782797,86.931,86.877,8.86464]
[1772582477292,10.353,86.921,86.897,0.08396355]
[1772582477987,8.65782797,86.931,86.897,0.08396355]
[1772582479392,8.17439418,86.976,86.897,0.08396355]
[1772582479593,10.352,86.931,86.897,0.08396355]
[1772582479793,8.17439418,86.945,86.897,9.05963993]
[1772582479989,8.17439418,86.945,86.897,8.97567638]
[1772582480190,10.351,86.942,86.897,8.97567638]
[1772582480488,8.17439418,86.945,86.912,0.07990242]
[1772582480990,0.07599693,86.928,86.882,8.97567638]
[1772582482095,10.354,86.921,86.882,8.97567638]
[1772582482793,10.352,86.93,86.882,8.97567638]
[1772582482990,0.0764996,86.91,86.882,8.97567638]
[1772582483294,10.352,86.93,86.882,8.97567638]
[1772582483492,10.352,86.93,86.888,8.97567638]
[1772582485695,8.17439418,86.946,86.888,8.97567638]
[1772582486298,10.353,86.929,86.888,8.97567638]
[1772582486598,10.353,86.929,86.908,0.08081985]
[1772582486999,20.695,86.973,86.908,9.05649623]
[1772582487000,8.17439418,86.972,86.908,9.05649623]
[1772582487490,8.17439418,86.972,86.908,8.97567638]
[1772582487890,10.352,86.933,86.908,8.97567638]
[1772582488999,10.351,86.941,86.908,8.97567638]
[1772582489396,0.08655876,86.929,86.908,8.97567638]
[1772582490899,20.695,86.973,86.908,8.97567638]
[1772582490900,8.17439418,86.972,86.908,8.97567638]
[1772582491293,8.17439418,86.972,86.91,9.06346598]
[1772582491694,8.17439418,86.972,86.91,8.97567638]
[1772582492092,8.17439418,86.991,86.91,8.97567638]
[1772582492301,8.17439418,86.991,86.933,8.97567638]
[1772582492504,8.17439418,86.991,86.934,9.80689599]
[1772582492704,8.17439418,86.991,86.935,9.80689599]
[1772582493001,8.17439418,86.991,86.937,8.97567638]
[1772582493207,8.17439418,87.01,86.955,8.97567638]
[1772582493503,8.17439418,87.01,86.956,9.80689599]
[1772582493703,8.17439418,87.01,86.957,9.80689599]
[1772582493904,10.346,86.985,86.958,9.80689599]
[1772582494106,10.346,86.985,86.974,0.07573235]
[1772582494301,10.346,86.985,86.975,9.80689599]
[1772582494495,10.346,86.985,86.976,9.80689599]
[1772582494700,10.345,86.994,86.955,8.97567638]
[1772582495004,0.07545412,86.989,86.955,8.97567638]
[1772582496101,10.346,86.986,86.955,8.97567638]
[1772582496305,0.07545412,86.989,86.955,8.97567638]
[1772582496503,8.17439418,87.024,86.964,8.97567638]
[1772582496802,10.342,87.016,86.969,8.97567638]
[1772582497209,8.17439418,87.039,86.969,8.97567638]
[1772582497410,8.17439418,87.039,86.979,8.97567638]
[1772582497610,8.17439418,87.063,86.979,8.97567638]
[1772582498113,8.17439418,87.063,87.0,9.04850963]
[1772582498308,10.34,87.031,87.0,9.04850963]
[1772582498611,8.17439418,87.063,87.0,8.97567638]
[1772582498811,10.339,87.044,87.0,8.97567638]
[1772582499013,8.17439418,87.063,87.007,9.06243699]
[1772582499511,8.17439418,87.063,87.007,8.97567638]
[1772582500014,8.17439418,87.063,87.026,0.08327408]
[1772582500614,10.339,87.047,87.026,0.08327408]
[1772582502021,8.17439418,87.044,86.987,8.97567638]
[1772582502213,8.17439418,87.044,86.888,161.121]
[1772582502214,8.17439418,87.044,86.953,8.97567638]
[1772582503117,8.17439418,87.044,86.91,20.71]
[1772582503118,10.342,87.019,86.969,8.97567638]
[1772582503616,0.08192906,87.007,86.969,8.97567638]
[1772582507515,10.344,86.999,86.969,8.97567638]
[1772582507717,8.25632324,87.007,86.898,8.97567638]
[1772582508421,8.65379244,86.979,86.911,8.63452748]
[1772582508623,0.08297947,86.961,86.911,8.63452748]
[1772582509018,10.349,86.96,86.911,8.63452748]
[1772582509220,0.08297947,86.961,86.911,8.63452748]
[1772582509620,10.351,86.943,86.911,8.63452748]
[1772582509821,8.65379244,86.96,86.911,8.63452748]
[1772582510423,10.349,86.959,86.911,8.63452748]
[1772582510624,8.65379244,86.975,86.911,8.63452748]
[1772582510823,8.65379244,86.975,86.927,8.71028319]
[1772582511122,8.65379244,87.002,86.927,8.71028319]
[1772582511719,10.346,86.98,86.927,8.63452748]
[1772582512323,10.346,86.98,86.93,8.63452748]
[1772582512529,10.346,86.98,86.945,0.07969379]
[1772582513422,10.346,86.98,86.93,8.63452748]
[1772582513423,8.65379244,86.985,86.915,8.63452748]
[1772582513625,8.65379244,86.985,86.867,8.63452748]
[1772582513927,8.65379244,86.97,86.867,8.63452748]
[1772582514222,10.35,86.953,86.9,8.63452748]
[1772582514617,10.348,86.963,86.914,8.63452748]
[1772582515328,8.65379244,86.97,86.93,0.08145853]
[1772582515923,10.349,86.958,86.93,0.08145853]
[1772582520133,10.348,86.966,86.93,0.08145853]
[1772582520534,8.65379244,86.97,86.93,0.08145853]
[1772582521029,8.65379244,87.003,86.93,8.71598601]
[1772582521429,8.65379244,86.975,86.917,8.63452748]
[1772582522027,0.07958555,86.955,86.917,8.63452748]
[1772582523031,0.07958555,86.955,86.918,10.354]
[1772582523236,0.07958555,86.955,86.917,8.63452748]
[1772582524036,10.35,86.954,86.917,8.63452748]
[1772582524835,0.07958555,86.955,86.918,10.354]
[1772582525035,0.07958555,86.955,86.919,8.63452748]
[1772582526129,0.07958555,86.955,86.87,14.24203961]
[1772582526335,0.07958555,86.955,86.871,8.63452748]
[1772582526530,8.73337799,86.955,86.893,8.63452748]
[1772582526735,8.65379244,86.955,86.893,8.63452748]
[1772582527037,0.08469918,86.933,86.893,8.63452748]
[1772582527837,8.65379244,86.97,86.893,8.63452748]
[1772582528337,10.349,86.955,86.909,8.63452748]
[1772582529240,10.349,86.955,86.912,8.63452748]
[1772582529539,10.349,86.955,86.923,0.08627556]
[1772582530235,10.35,86.948,86.923,0.08627556]
[1772582530540,8.65379244,86.97,86.923,0.08627556]
[1772582530742,8.65379244,86.968,86.858,8.63452748]
[1772582531039,10.352,86.931,86.88,8.63452748]
[1772582531431,8.65379244,86.941,86.88,8.63452748]
[1772582531837,10.351,86.939,86.898,8.63452748]
[1772582532042,8.65379244,86.987,86.898,8.63452748]
[1772582532741,8.65379244,86.965,86.869,8.63452748]
[1772582533332,10.353,86.928,86.888,8.63452748]
[1772582533533,10.353,86.928,86.908,0.08420278]
[1772582533940,0.07552884,86.917,86.873,8.63452748]
[1772582534543,10.354,86.916,86.875,10.359]
[1772582534742,10.354,86.916,86.873,8.63452748]
[1772582536242,0.07552884,86.917,86.873,8.63452748]
[1772582536744,10.354,86.915,86.873,18.99352748]
[1772582537044,0.07552884,86.917,86.874,8.63452748]
[1772582537246,10.354,86.916,86.874,8.63452748]
[1772582537948,0.08557455,86.904,86.874,8.63452748]
[1772582538442,10.44157455,86.904,86.874,8.63452748]
[1772582538639,10.44157455,86.904,86.862,10.36]
[1772582540144,0.08557455,86.904,86.865,8.46379714]
[1772582540345,8.20442877,86.938,86.865,8.46379714]
[1772582540542,8.20442877,86.938,86.875,8.46379714]
[1772582541146,185.68252164,86.994,86.835,8.46379714]
[1772582541147,8.20442877,86.921,86.835,8.46379714]
[1772582541750,8.20442877,86.921,86.869,0.08430993]
[1772582542543,8.20442877,86.905,86.869,0.08430993]
[1772582543142,10.357,86.89,86.843,18.82679714]
[1772582544141,10.356,86.897,86.849,10.362]
[1772582544347,10.356,86.897,86.85,8.46379714]
[1772582544949,0.07292335,86.882,86.85,8.46379714]
[1772582545341,0.07292335,86.882,86.852,10.362]
[1772582545750,18.55942877,86.905,86.852,8.46379714]
[1772582546053,10.355,86.905,86.859,8.46379714]
[1772582546246,10.356,86.899,86.859,8.46379714]
[1772582546550,8.20442877,86.921,86.859,8.46379714]
[1772582547147,8.20442877,86.921,86.843,8.46379714]
[1772582547354,8.20442877,86.898,86.843,8.46379714]
[1772582547658,8.20442877,86.898,86.809,8.46379714]
[1772582547855,8.20442877,86.898,86.801,14.24203961]
[1772582547856,8.20442877,86.898,86.811,8.46379714]
[1772582548452,8.20442877,86.894,86.846,10.362]
[1772582548857,8.20442877,86.894,86.847,8.46379714]
[1772582549151,8.20442877,86.91,86.861,0.08387766]
[1772582549356,8.20442877,86.91,86.861,8.5476748]
[1772582549558,10.356,86.897,86.861,8.5476748]
[1772582549849,10.356,86.897,86.843,8.46379714]
[1772582550052,8.20442877,86.91,86.87,0.07710704]
[1772582550249,8.20442877,86.91,86.843,8.46379714]
[1772582550453,8.20442877,86.91,86.81,2.00350614]
[1772582550454,8.20442877,86.91,86.811,8.46379714]
[1772582550647,10.359,86.878,86.83,10.364]
[1772582551255,10.359,86.878,86.83,18.82779714]
[1772582552057,10.359,86.878,86.833,10.364]
[1772582553059,0.0823151,86.864,86.833,10.364]
[1772582554457,0.0823151,86.864,86.833,18.82779714]
[1772582554657,0.0823151,86.864,86.834,8.46379714]
[1772582555056,0.0823151,86.864,86.836,10.363]
[1772582555260,0.0823151,86.864,86.836,18.82679714]
[1772582555463,0.0823151,86.864,86.836,8.46379714]
[1772582560763,10.361,86.856,86.822,8.46379714]
[1772582560971,10.361,86.856,86.806,8.46379714]
[1772582561667,0.08193072,86.84,86.807,10.367]
[1772582561865,0.08193072,86.84,86.808,8.46379714]
[1772582562270,8.20442877,86.867,86.808,8.46379714]
[1772582562667,0.08689736,86.833,86.808,8.46379714]
[1772582562868,10.36,86.87,86.821,8.46379714]
[1772582563069,10.36,86.87,86.829,0.08361591]
[1772582563271,8.20442877,86.882,86.829,0.08361591]
[1772582563772,8.20442877,86.882,86.821,8.46379714]
[1772582564271,10.359,86.872,86.847,0.0859502]
[1772582565473,10.358,86.881,86.847,0.0859502]
[1772582569169,8.23810864,86.881,86.847,0.0859502]
[1772582569571,8.23810864,86.881,86.82,8.81576174]
[1772582569772,8.23810864,86.872,86.82,8.81576174]
[1772582570171,10.361,86.854,86.82,8.81576174]
[1772582570376,8.23810864,86.854,86.804,8.81576174]
[1772582571079,0.07372842,86.838,86.804,8.81576174]
[1772582572278,0.07372842,86.838,86.804,19.18276174]
[1772582572474,0.07372842,86.838,86.805,8.81576174]
[1772582572970,10.362,86.848,86.805,8.81576174]
[1772582573374,0.07469423,86.83,86.805,8.81576174]
[1772582580378,10.43869423,86.83,86.805,8.81576174]
[1772582580580,10.43869423,86.83,86.792,19.18476174]
[1772582580779,10.43869423,86.83,86.793,8.81576174]
[1772582581079,0.07469423,86.83,86.795,8.81576174]
[1772582581678,8.23810864,86.842,86.795,8.81576174]
[1772582582078,0.07314303,86.821,86.795,8.81576174]
[1772582582277,10.362,86.848,86.81,8.8990885]
[1772582582781,10.362,86.848,86.81,8.81576174]
[1772582583182,10.363,86.842,86.81,8.81576174]
[1772582583680,10.363,86.842,86.82,0.08124375]
[1772582584072,8.23810864,86.89,86.82,8.89700549]
[1772582584274,8.23810864,86.904,86.822,8.81576174]
[1772582584470,8.23810864,86.904,86.829,8.81576174]
[1772582585177,8.23810864,86.953,86.858,8.88966133]
[1772582585782,8.23810864,86.914,86.858,8.81576174]
[1772582586283,8.31442884,86.914,86.858,8.81576174]
[1772582586776,8.23810864,86.914,86.858,8.81576174]
[1772582587277,10.356,86.897,86.858,8.81576174]
[1772582587682,0.08835268,86.895,86.858,8.81576174]
[1772582588482,0.08835268,86.895,86.859,10.361]
[1772582588779,0.08835268,86.895,86.86,8.81576174]
[1772582588980,0.08835268,86.895,86.862,10.36]
[1772582589181,0.08835268,86.895,86.863,8.81576174]
[1772582589378,8.23810864,86.914,86.863,8.81576174]
[1772582589880,0.08441919,86.888,86.863,8.81576174]
[1772582591582,10.355,86.905,86.867,8.81576174]
[1772582591886,10.355,86.905,86.867,8.89537812]
[1772582592087,8.23810864,86.929,86.87,8.81576174]
[1772582592381,8.23810864,86.943,86.87,8.81576174]
[1772582593086,8.23810864,86.943,86.898,0.07527133]
[1772582594284,8.23810864,86.924,86.864,8.81576174]
[1772582595087,10.356,86.899,86.851,10.362]
[1772582595483,10.356,86.899,86.852,8.81576174]
[1772582595884,0.0758528,86.884,86.852,8.81576174]
[1772582596090,8.23810864,86.856,86.801,8.81576174]
[1772582596388,8.23810864,86.883,86.801,8.81576174]
[1772582596984,0.08282984,86.851,86.801,8.81576174]
[1772582597184,0.08282984,86.851,86.81,10.367]
[1772582597386,0.08282984,86.851,86.801,8.81576174]
[1772582598188,0.08282984,86.851,86.802,10.368]
[1772582598383,0.08282984,86.851,86.803,8.77599744]
[1772582598993,8.30950546,86.882,86.803,8.77599744]
[1772582599694,8.30950546,86.882,86.834,0.07458491]
[1772582600288,10.36,86.866,86.834,0.07458491]
[1772582601591,10.361,86.858,86.834,0.07458491]
[1772582602594,10.362,86.849,86.834,0.07458491]
[1772582605295,18.81833237,86.858,86.834,0.07458491]
[1772582606401,10.362,86.85,86.804,8.24077062]
[1772582606600,161.071,86.916,86.751,20.748]
[1772582606601,8.45733237,86.849,86.771,8.24077062]
[1772582606901,8.45733237,86.836,86.771,8.24077062]
[1772582607602,10.366,86.819,86.772,10.371]
[1772582608797,10.366,86.819,86.771,8.24077062]
[1772582609403,8.45733237,86.836,86.772,8.24077062]
[1772582609902,10.366,86.813,86.772,8.24077062]
[1772582610601,10.365,86.822,86.772,8.24077062]
[1772582610793,0.07328355,86.801,86.772,8.24077062]
[1772582611701,0.07328355,86.801,86.736,8.24077062]
[1772582612201,0.07328355,86.801,86.735,2.00518005]
[1772582612202,10.367,86.807,86.76,8.24077062]
[1772582613098,0.0762037,86.792,86.76,8.24077062]
[1772582613294,0.0762037,86.792,86.768,10.372]
[1772582613500,8.45733237,86.823,86.769,8.24077062]
[1772582613807,10.365,86.823,86.781,8.24077062]
[1772582614201,10.365,86.823,86.735,2.00518005]
[1772582614202,8.45733237,86.788,86.742,10.375]
[1772582614901,8.45733237,86.843,86.743,8.24077062]
[1772582615102,8.45733237,86.843,86.745,8.24077062]
[1772582615404,10.362,86.851,86.801,10.368]
[1772582615706,8.45733237,86.908,86.802,8.24077062]
[1772582615903,8.45733237,86.903,86.834,8.24077062]
[1772582616909,10.356,86.902,86.847,8.24077062]
[1772582617208,8.45733237,86.903,86.86,0.08128238]
[1772582617509,8.45733237,86.867,86.807,8.24077062]
[1772582617710,8.45733237,86.928,86.807,8.24077062]
[1772582618205,8.45733237,86.881,86.819,8.24077062]
[1772582618410,0.0873623,86.876,86.819,8.24077062]
[1772582619010,10.357,86.892,86.828,8.24077062]
[1772582619212,8.45733237,86.898,86.828,8.24077062]
[1772582619509,0.08588896,86.856,86.828,8.24077062]
[1772582619804,0.08588896,86.856,86.832,10.364]
[1772582620810,0.08588896,86.856,86.828,8.24077062]
[1772582624412,0.08588896,86.856,86.81,8.24077062]
[1772582625213,0.08588896,86.856,86.813,8.24077062]
[1772582625817,8.45733237,86.885,86.813,8.24077062]
[1772582626115,0.07448441,86.843,86.813,8.24077062]
[1772582626510,0.07448441,86.843,86.797,8.24077062]
[1772582626813,8.45733237,86.866,86.798,8.24077062]
[1772582627204,10.362,86.853,86.798,8.24077062]
[1772582627609,0.0839356,86.841,86.798,8.24077062]
[1772582628710,9.86753705,86.853,86.798,8.24077062]
[1772582628913,8.25255471,86.862,86.801,8.6891028]
[1772582629615,10.361,86.86,86.805,19.0561028]
[1772582629816,10.361,86.86,86.806,8.6891028]
[1772582630019,10.361,86.86,86.809,10.367]
[1772582630319,18.61355471,86.86,86.824,0.07421089]
[1772582630520,10.361,86.855,86.824,0.07421089]
[1772582631020,8.25255471,86.874,86.82,8.6891028]
[1772582631521,8.25255471,86.874,86.831,0.07297032]
[1772582633412,8.25255471,86.89,86.832,8.6891028]
[1772582633617,10.359,86.875,86.832,19.0531028]
[1772582633817,10.359,86.875,86.832,8.6891028]
[1772582634519,10.359,86.875,86.845,0.08443774]
[1772582637123,8.25255471,86.89,86.845,0.08443774]
[1772582637926,10.358,86.882,86.845,0.08443774]
[1772582638222,8.25255471,86.89,86.845,0.08443774]
[1772582638917,10.358,86.883,86.845,0.08443774]
[1772582639523,8.25255471,86.882,86.845,0.08443774]
[1772582640122,8.25255471,86.882,86.832,8.6891028]
[1772582640322,8.25255471,86.882,86.821,10.365]
[1772582640626,8.25255471,86.882,86.818,8.6891028]
[1772582641026,8.25255471,86.882,86.82,8.6891028]
[1772582642026,0.07311711,86.86,86.82,8.6891028]
[1772582642424,8.25255471,86.859,86.802,8.6891028]
[1772582642929,8.25255471,86.845,86.787,8.6891028]
[1772582643427,8.25255471,86.845,86.719,35.60509902]
[1772582643428,10.363,86.837,86.796,8.6891028]
[1772582643828,8.25255471,86.858,86.796,8.6891028]
[1772582643829,0.07940824,86.825,86.796,8.6891028]
[1772582645629,0.07940824,86.825,86.784,8.6891028]
[1772582646029,0.07940824,86.825,86.787,8.6891028]
[1772582646234,10.364,86.834,86.787,8.6891028]
[1772582646526,8.25255471,86.876,86.787,8.6891028]
[1772582647332,20.718,86.877,86.771,8.6891028]
[1772582647333,8.25255471,86.842,86.771,8.6891028]
[1772582648034,0.0774529,86.815,86.771,8.6891028]
[1772582648230,0.0774529,86.815,86.773,10.371]
[1772582648626,10.365,86.823,86.773,10.371]
[1772582650135,8.25255471,86.823,86.771,8.6891028]
[1772582650330,0.07506195,86.807,86.771,8.6891028]
[1772582651827,20.722,86.858,86.771,8.6891028]
[1772582651828,8.25255471,86.839,86.771,8.6891028]
[1772582652133,10.361,86.858,86.809,8.6891028]
[1772582653335,10.361,86.858,86.825,0.08651431]
[1772582653531,8.25255471,86.876,86.825,0.08651431]
[1772582655243,10.36,86.865,86.825,0.08651431]
[1772582655444,8.25255471,86.876,86.791,8.6891028]
[1772582655943,8.25255471,86.853,86.791,8.6891028]
[1772582656244,0.07821285,86.854,86.791,8.6891028]
[1772582656245,10.364,86.835,86.791,8.6891028]
[1772582656447,8.25255471,86.835,86.775,8.6891028]
[1772582656945,0.07688105,86.822,86.777,8.6891028]
[1772582657445,0.07688105,86.822,86.784,10.37]
[1772582658041,8.60077049,86.821,86.752,8.93000086]
[1772582658440,10.368,86.802,86.755,10.373]
[1772582659048,0.08146299,86.787,86.755,10.373]
[1772582659647,0.08146299,86.787,86.761,10.372]
[1772582660647,0.08146299,86.787,86.753,10.373]
[1772582661747,0.08146299,86.787,86.76,10.373]
[1772582664443,10.366,86.818,86.769,10.371]
[1772582664637,8.88356583,86.822,86.769,8.46136951]
[1772582664846,8.88356583,86.822,86.765,0.08321882]
[1772582665048,8.88356583,86.822,86.753,8.46136951]
[1772582665546,8.88356583,86.81,86.753,8.46136951]
[1772582665937,8.88356583,86.81,86.779,0.08486725]
[1772582666450,10.368,86.803,86.779,0.08486725]
[1772582666845,8.88356583,86.81,86.779,0.08486725]
[1772582667251,10.366,86.818,86.779,0.08486725]
[1772582667443,8.88356583,86.846,86.779,8.54623676]
[1772582667749,8.88356583,86.846,86.779,8.46136951]
[1772582667950,10.363,86.845,86.797,10.368]
[1772582668151,8.88356583,86.886,86.804,0.07781638]
[1772582668351,8.88356583,86.886,86.804,8.53918589]
[1772582668545,10.361,86.862,86.806,8.46136951]
[1772582669051,10.361,86.862,86.825,0.08741465]
[1772582669845,10.361,86.854,86.825,0.08741465]
[1772582670046,8.88356583,86.853,86.825,0.08741465]
[1772582670543,8.88356583,86.853,86.742,28.57747024]
[1772582670544,8.88356583,86.894,86.779,8.46136951]
[1772582670744,161.071,86.916,86.779,8.46136951]
[1772582670745,0.07545915,86.848,86.78,8.46136951]
[1772582670941,0.07545915,86.848,86.785,8.46136951]
[1772582671445,8.88356583,86.865,86.785,8.46136951]
[1772582671751,0.0876066,86.825,86.785,8.46136951]
[1772582671946,8.88356583,86.865,86.785,8.46136951]
[1772582672141,8.88356583,86.865,86.816,0.08160294]
[1772582672350,10.362,86.851,86.816,0.08160294]
[1772582672550,8.88356583,86.865,86.816,0.08160294]
[1772582673049,8.88356583,86.851,86.816,0.08160294]
[1772582673551,8.88356583,86.851,86.803,8.46136951]
[1772582674049,8.88356583,86.851,86.825,0.0842173]
[1772582674251,10.363,86.84,86.825,0.0842173]
[1772582675150,8.88356583,86.88,86.825,0.0842173]
[1772582675646,8.88356583,86.88,86.809,10.367]
[1772582676041,8.88356583,86.88,86.844,0.08300652]
[1772582676240,10.361,86.857,86.809,10.367]
[1772582676449,0.07914672,86.853,86.809,10.367]
[1772582677046,10.363,86.844,86.803,8.46136951]
[1772582677951,0.07433273,86.832,86.803,8.46136951]
[1772582681447,0.07433273,86.832,86.805,10.367]
[1772582682846,10.362,86.852,86.81,0.08451649]
[1772582684956,8.88356583,86.865,86.812,8.46136951]
[1772582684957,10.361,86.86,86.812,8.46136951]
[1772582685856,10.361,86.86,86.827,0.07591001]
[1772582686356,8.88356583,86.897,86.828,8.46136951]
[1772582687252,10.357,86.891,86.854,0.0781935]
[1772582687856,10.357,86.891,86.855,9.84400109]
[1772582688053,10.357,86.891,86.856,9.84400109]
[1772582688253,10.357,86.891,86.854,0.0781935]
[1772582688254,10.357,86.891,86.857,9.84400109]
[1772582688557,8.28986816,86.883,86.854,0.0781935]
[1772582688749,8.28986816,86.883,86.823,9.02353143]
[1772582688954,8.36406594,86.883,86.823,9.02353143]
[1772582689350,8.28986816,86.883,86.823,9.02353143]